[Event "Baku Open 2024"]
[Site "Baku"]
[Date "2024.07.01"]
[Round "3.7"]
[White "Suleymanli, Suleyman"]
[Black "Ahmadzada, Ahmad"]
[Result "1/2-1/2"]
[ECO "A07"]
[WhiteElo "2262"]
[BlackElo "2481"]
[Annotator "TA"]
[PlyCount "63"]
[EventDate "2024.06.29"]
[EventType "swiss"]
[EventCountry "AZE"]
[SourceTitle "playchess.com"]
[Source "ChessBase"]
[SourceQuality "1"]
[TimeControl "5400+30"]

{[%evp 9,63,7,5,0,5,0,3,0,0,0,0,0,0,0,15,10,16,16,7,-35,-32,-29,-27,-29,-34,-55,-70,-77,-59,-65,-51,-52,-50,-44,-35,-51,-6,-77,-72,-80,-77,-71,-41,-31,0,0,35,35,37,53,41,43,44,42,41,43]} 1. Nf3 {[%emt 0:00:02]} d5 {[%emt 0:00:38]} 2. g3 {[%emt 0:00:09]} Bg4 {[%emt 0:00:17]} 3. Bg2 {[%emt 0:00:08]} Nd7 {[%emt 0:00:09]} 4. O-O {[%emt 0:00:40]} c6 {[%emt 0:00:20]} 5. h3 {[%emt 0:00:11]} Bxf3 {[%emt 0:00:23]} 6. Bxf3 {[%emt 0:00:05]} e5 {[%emt 0:00:38]} 7. d4 {[%emt 0:02:04]} Ngf6 {[%emt 0:03:27] [#]} 8. c4 $1 {[%emt 0:28:27] The position is equal.} dxc4 {[%emt 0:03:44]} 9. Nd2 {[%emt 0:04:19]} exd4 {[%emt 0:07:59]} 10. Nxc4 {[%emt 0:00:11]} Nc5 {[%emt 0:01:24]} 11. Bf4 {[%emt 0:03:34]} Be7 {[%emt 0:04:44]} 12. Be5 {[%emt 0:01:14]} d3 {[%emt 0:03:42]} 13. exd3 {[%emt 0:04:26]} Qxd3 {[%emt 0:12:02]} 14. Nd6+ {[%emt 0:04:44]} Bxd6 {[%emt 0:00:59]} 15. Bxd6 {[%emt 0:00:39] This pair of bishops is nice.} Qxd1 {[%emt 0:01:07]} 16. Raxd1 {[%emt 0:09:17]} Ne6 {[%emt 0:00:15]} 17. b4 {[%emt 0:06:03][%cal Ob4b5]} O-O-O $1 {[%emt 0:01:22]} 18. Be5 {[%emt 0:19:51][%cal Ob4b5]} Rhe8 {[%emt 0:06:10]} 19. h4 {[%emt 0:01:23]} Rd7 {[%emt 0:04:02]} 20. Kg2 {[%emt 0:04:10]} Red8 {[%emt 0:01:55]} 21. Rc1 {[%emt 0:05:14]} Rd2 {[%emt 0:02:19]} 22. a3 {[%emt 0:01:51]} Ra2 {[%emt 0:04:14]} 23. Rc3 {[%emt 0:01:58]} (23. b5 $11 c5 (23... Rxa3 24. bxc6 bxc6 25. Bxc6 $18) 24. Bxf6 gxf6 25. Bh5) 23... Nd5 $17 {[%emt 0:05:47]} 24. Rb3 {[%emt 0:00:37]} g6 {[%emt 0:03:08]} 25. Rd1 {[%emt 0:01:05]} Ndc7 {[%emt 0:07:23]} 26. Rxd8+ {[%emt 0:00:08]} Nxd8 {[%emt 0:01:15]} 27. Bb2 {[%emt 0:00:33]} Nb5 {[%emt 0:04:52]} 28. Be4 $1 {[%emt 0:00:36] White is slightly better.} Ne6 {[%emt 0:04:48]} 29. Bb1 $1 {[%emt 0:00:01]} Rxb2 {[%emt 0:00:06]} 30. Rxb2 {[%emt 0:00:01]} Nxa3 {[%emt 0:00:08]} 31. Ba2 {[%emt 0:00:51]} Kd7 {[%emt 0:00:52]} 32. Rd2+ {[%emt 0:00:43] Weighted Error Value: White=0.09 (flawless) /Black=0.09 (flawless) .  Mistake:       	White=1     	---        Inaccurate:     	White=1     	Black=4      OK:         	White=11    	Black=8      Best:        	White=2     	Black=4      Strong:       	White=2     	Black=1} 1/2-1/2

[Event "Baku Open 2024"]
[Site "Baku"]
[Date "2024.07.01"]
[Round "3.8"]
[White "Manafov, Vugar"]
[Black "Hamidov, Allahverdi"]
[Result "1/2-1/2"]
[ECO "D35"]
[WhiteElo "2430"]
[BlackElo "2307"]
[Annotator "TA"]
[PlyCount "98"]
[EventDate "2024.06.29"]
[EventType "swiss"]
[EventCountry "AZE"]
[SourceTitle "playchess.com"]
[Source "ChessBase"]
[SourceQuality "1"]
[TimeControl "5400+30"]

{[%evp 15,98,12,18,20,18,0,0,0,10,0,8,4,15,26,6,8,26,12,0,0,26,27,29,18,34,32,43,23,29,14,32,41,25,20,60,53,61,56,58,52,46,58,94,95,87,93,127,73,72,67,82,80,79,76,70,71,76,76,84,84,81,77,84,71,76,66,87,63,63,51,51,51,51,22,24,8,14,15,14,8,8,8,8,8,8]} 1. c4 {[%emt 0:00:09]} e6 {[%emt 0:00:25]} 2. Nc3 {[%emt 0:00:15]} d5 {[%emt 0:00:12]} 3. d4 {[%emt 0:00:34]} Nf6 {[%emt 0:00:08]} 4. cxd5 {[%emt 0:00:38]} exd5 {[%emt 0:00:40]} 5. Bg5 {[%emt 0:00:24]} c6 {[%emt 0:00:18]} 6. e3 {[%emt 0:00:44]} h6 {[%emt 0:00:11]} 7. Bh4 {[%emt 0:00:52]} Be7 {[%emt 0:00:10]} 8. Bd3 {[%emt 0:00:25]} O-O {[%emt 0:00:12]} 9. Nge2 {[%emt 0:01:39]} Re8 {[%emt 0:00:44]} 10. f3 {[%emt 0:03:29]} b5 {[%emt 0:06:03]} 11. O-O {[%emt 0:03:45]} a6 {[%emt 0:05:53]} 12. Bf2 {[%emt 0:02:56]} c5 {[%emt 0:07:55]} 13. dxc5 {[%emt 0:03:05]} Bxc5 {[%emt 0:00:10]} 14. Nd4 {[%emt 0:06:46]} Nbd7 {[%emt 0:05:31]} 15. Rc1 {[%emt 0:06:19]} Bf8 {[%emt 0:09:26]} 16. Nce2 {[%emt 0:07:31][%cal Bc3e2,Be2f4,Bf4d3][%mdl 32]} Ne5 {[%emt 0:04:15]} 17. b3 {[%emt 0:10:04]} Nxd3 {[%emt 0:02:55]} 18. Qxd3 {[%emt 0:00:53]} Bd7 {[%emt 0:10:12]} 19. Nf4 {[%emt 0:07:08]} Qb6 {[%emt 0:03:35] Wards off Nc6} 20. Qd2 {[%emt 0:02:12]} Rac8 {[%emt 0:04:21]} 21. Nd3 {[%emt 0:03:11] A dynamic duo of knights.} b4 {[%emt 0:07:18]} 22. Bg3 {[%emt 0:13:29]} a5 {[%emt 0:06:58]} 23. Rxc8 {[%emt 0:05:39]} Rxc8 {[%emt 0:01:49]} 24. Rc1 {[%emt 0:00:33]} Bc5 {[%emt 0:05:44]} 25. Nxc5 {[%emt 0:05:21]} Rxc5 {[%emt 0:01:02]} 26. Rxc5 {[%emt 0:03:35]} Qxc5 {[%emt 0:00:02]} 27. Qc2 {[%emt 0:01:14]} Qxc2 {[%emt 0:05:02]} 28. Nxc2 $14 {[%emt 0:00:05][%mdl 4096] Endgame. KBN-KBN} d4 {[%emt 0:01:59][%cal Bd5d4,Bd4d3][%mdl 32] [#] And now ...d3 would win.} 29. e4 {[%emt 0:03:49]} d3 {[%emt 0:00:32]} 30. Ne3 {[%emt 0:00:02]} a4 {[%emt 0:02:57]} 31. bxa4 {[%emt 0:01:42]} ({Better is} 31. Nc4) 31... Bxa4 $16 {[%emt 0:00:47] Hoping for ...d2.} 32. Kf1 {[%emt 0:00:21]} b3 {[%emt 0:01:11]} ({Much worse is} 32... d2 33. Ke2 $16) 33. axb3 {[%emt 0:00:03]} Bxb3 {[%emt 0:00:05]} 34. Ke1 {[%emt 0:00:08]} Ba4 {[%emt 0:00:39]} 35. Kd2 {[%emt 0:00:17]} Bb5 {[%emt 0:00:08]} 36. Be5 {[%emt 0:00:50]} Nd7 {[%emt 0:01:10]} 37. Bd4 {[%emt 0:00:04]} Nf8 {[%emt 0:02:04]} 38. Nd5 {[%emt 0:02:15]} Ne6 {[%emt 0:00:30]} 39. Be3 {[%emt 0:00:11]} Kh7 {[%emt 0:00:43]} 40. Nb4 {[%emt 0:01:24]} Kg6 {[%emt 0:01:58]} 41. Nxd3 {[%emt 0:00:32]} f5 {[%emt 0:00:31]} 42. exf5+ {[%emt 0:00:38]} Kxf5 {[%emt 0:00:03]} 43. g4+ {[%emt 0:00:24]} Kf6 {[%emt 0:00:45]} 44. Nf2 {[%emt 0:00:19]} Bc6 {[%emt 0:00:30]} 45. f4 {[%emt 0:00:15]} g6 {[%emt 0:01:17] The position is equal.} 46. Kd3 {[%emt 0:00:38]} h5 {[%emt 0:00:49]} 47. gxh5 {[%emt 0:00:23]} gxh5 {[%emt 0:00:07]} 48. Ne4+ {[%emt 0:00:09]} Kg6 {[%emt 0:00:48]} 49. Nd6 {[%emt 0:00:13] [#] f5+ would now be deadly.} Ng7 {[%emt 0:04:16] Weighted Error Value: White=0.07 (flawless) /Black=0.08 (flawless) .  Mistake:       	White=1     	---        Inaccurate:     	White=1     	Black=4      OK:         	White=22    	Black=15     Best:        	---       	Black=1} 1/2-1/2

[Event "Baku Open 2024"]
[Site "Baku"]
[Date "2024.07.01"]
[Round "3.9"]
[White "Yeletsky, Ivan"]
[Black "Sherali Pattnaik"]
[Result "1-0"]
[ECO "D31"]
[WhiteElo "2498"]
[BlackElo "1955"]
[Annotator "TA"]
[PlyCount "71"]
[EventDate "2024.06.29"]
[EventType "swiss"]
[EventCountry "AZE"]
[SourceTitle "playchess.com"]
[Source "ChessBase"]
[SourceQuality "1"]
[TimeControl "5400+30"]

{[%evp 13,70,10,16,11,22,0,68,63,78,69,143,149,284,182,175,193,266,278,300,313,309,316,284,153,133,0,337,331,326,327,324,309,334,312,330,331,400,390,430,414,508,453,542,544,477,413,810,791,785,818,1674,1631,29984,29985,29988,29989,29993,29994,29999]} 1. d4 {[%emt 0:04:29]} d5 {[%emt 0:00:13]} 2. c4 {[%emt 0:00:32]} e6 {[%emt 0:00:03]} 3. Nc3 {[%emt 0:00:14]} Be7 {[%emt 0:00:10]} 4. cxd5 {[%emt 0:00:38]} exd5 {[%emt 0:00:04]} 5. Bf4 {[%emt 0:00:10]} c6 {[%emt 0:00:15]} 6. e3 {[%emt 0:00:13]} Bf5 {[%emt 0:00:13]} 7. Nge2 {[%emt 0:00:16]} Nf6 {[%emt 0:05:01]} 8. Ng3 {[%emt 0:00:43]} Bg6 {[%emt 0:00:24]} 9. h4 {[%emt 0:02:12][%cal Bh2h4,Bh4h5][%mdl 32]} h6 {[%emt 0:02:26]} (9... Qb6 $11) 10. h5 $14 {[%emt 0:03:20] White is slightly better.} Bh7 {[%emt 0:00:19]} 11. Bd3 {[%emt 0:00:20]} Qb6 {[%emt 0:01:52]} ({Better is} 11... Qd7 $14) 12. Bxh7 $16 {[%emt 0:06:51]} Nxh7 {[%emt 0:07:46]} (12... Rxh7 $16 {is a better defense.} 13. Qc2 Na6) 13. O-O {[%emt 0:08:08] Hoping for Nf5.} O-O {[%emt 0:04:39]} 14. Nf5 {[%emt 0:00:49]} Bg5 {[%emt 0:04:57]} (14... Qd8 $142 15. Qg4 Bg5) 15. Be5 $18 {[%emt 0:04:28]} Bf6 {[%emt 0:01:08]} 16. Qg4 {[%emt 0:08:21] [#] And now Bxf6 would win.} Bxe5 {[%emt 0:10:34]} 17. dxe5 {[%emt 0:00:13][%csl Gf5][%cal Rg4g7]} Ng5 {[%emt 0:00:03]} 18. Na4 {[%emt 0:16:37]} (18. f4 $18 Ne6 19. Na4 (19. Nxh6+ Kh7 $18)) 18... Qa5 $16 {[%emt 0:01:50]} 19. Nc3 $2 {[%emt 0:06:48] White is much more active. The black rooks are passive.} (19. b3 $16 {f4 is the strong threat.} Kh8 20. f4) 19... Qb6 $1 $18 {[%emt 0:06:33] White leaves nothing to chance now.} 20. f4 {[%emt 0:00:29]} Ne6 {[%emt 0:00:06]} 21. Na4 {[%emt 0:04:37]} (21. Nxh6+ Kh7 $18) 21... Qc7 {[%emt 0:19:32]} 22. Nxh6+ {[%emt 0:05:23]} Kh8 {[%emt 0:00:24]} 23. Nf5 {[%emt 0:04:09]} Na6 {[%emt 0:04:08][%cal Bb8a6,Ba6c5,Bc5d3][%mdl 32]} 24. Rf3 {[%emt 0:01:56]} Qa5 {[%emt 0:04:05]} 25. Nc3 {[%emt 0:00:13]} Qb4 {[%emt 0:00:13]} 26. Rb1 {[%emt 0:00:52]} Nac5 {[%emt 0:01:21]} 27. Rg3 {[%emt 0:07:11]} Nd3 {[%emt 0:04:23]} 28. a3 {[%emt 0:01:58]} Qc5 {[%emt 0:01:00]} 29. Kh2 {[%emt 0:00:46]} ({Don't do} 29. Nxg7 Rg8 $18) 29... Rg8 {[%emt 0:05:06]} (29... Rad8 $142 30. Qe2 (30. Nxg7 Rg8 $18) 30... Qc4) 30. Nd6 {[%emt 0:01:33]} Raf8 {[%emt 0:01:17]} 31. Qf5 {[%emt 0:00:22]} Nxb2 {[%emt 0:00:48]} 32. Rxb2 {[%emt 0:02:05]} Qxc3 {[%emt 0:00:07]} 33. Rxb7 {[%emt 0:00:07] White mates.} Nd8 {[%emt 0:00:03]} 34. Rd7 {[%emt 0:00:21]} Qxa3 {[%emt 0:00:29] [#]} 35. Rxd8 $1 {[%emt 0:00:12][%mdl 512]} Rxd8 {[%emt 0:00:02]} (35... Qxe3 36. Rxe3) 36. Nxf7# {[%emt 0:00:41] Weighted Error Value: White=0.24 (precise) /Black=0.48.  Mistake:       	White=2     	Black=5      Inaccurate:     	White=1     	---        OK:         	White=13    	Black=6      Best:        	White=1     	Black=2      Strong:       	---       	Black=1} 1-0

[Event "Baku Open 2024"]
[Site "Baku"]
[Date "2024.07.01"]
[Round "3.10"]
[White "Galaktionov, Artem"]
[Black "Pranav Vijay"]
[Result "1/2-1/2"]
[ECO "E17"]
[WhiteElo "2358"]
[BlackElo "2252"]
[Annotator "TA"]
[PlyCount "107"]
[EventDate "2024.06.29"]
[EventType "swiss"]
[EventCountry "AZE"]
[SourceTitle "playchess.com"]
[Source "ChessBase"]
[SourceQuality "1"]
[TimeControl "5400+30"]

{[%evp 15,107,0,16,20,13,6,5,14,17,11,4,12,13,0,11,0,19,11,10,0,0,0,0,-25,-5,-19,-6,-110,-101,-104,0,0,6,0,48,47,68,24,116,108,80,83,96,84,62,0,0,0,0,0,46,0,0,0,0,0,0,0,0,0,0,0,0,0,0,0,0,0,0,0,0,0,0,0,0,0,0,0,0,0,0,0,0,0,0,0,0,0,0,0,0,0,23,0]} 1. d4 {[%emt 0:02:55]} Nf6 {[%emt 0:02:25]} 2. c4 {[%emt 0:00:09]} e6 {[%emt 0:00:22]} 3. Nf3 {[%emt 0:00:04]} b6 {[%emt 0:00:11]} 4. g3 {[%emt 0:00:05]} Bb7 {[%emt 0:00:08]} 5. Bg2 {[%emt 0:00:06]} Be7 {[%emt 0:00:11]} 6. Nc3 {[%emt 0:00:05]} O-O {[%emt 0:00:10]} 7. Qc2 {[%emt 0:00:03] The modern move.} c5 {[%emt 0:01:56]} 8. d5 {[%emt 0:00:13]} exd5 {[%emt 0:00:11]} 9. Nh4 {[%emt 0:00:03][%cal Rc4d5] E17: Queen's Indian: 4 g3 Bb7 5 Bg2 Be7.} Nc6 {[%emt 0:01:21]} 10. cxd5 {[%emt 0:00:04]} Nd4 {[%emt 0:00:09]} 11. Qd3 {[%emt 0:00:03][%cal Od5d6]} Ne8 {[%emt 0:00:21]} 12. Nf3 {[%emt 0:00:03]} Nxf3+ {[%emt 0:00:34]} 13. Bxf3 {[%emt 0:00:07]} d6 {[%emt 0:00:19]} 14. O-O {[%emt 0:01:12]} Nc7 {[%emt 0:05:02]} 15. Be4 $146 {[%emt 0:13:01]} ({Predecessor:} 15. Re1 Re8 16. Bg2 Bf6 17. Bf4 b5 18. a4 b4 19. Ne4 Be7 20. Nd2 g5 21. Be3 {½-½ Perez Fernandez,J (2402)-Voiculescu,C (2435) W-ch42 sf06 email 2018}) 15... g6 {[%emt 0:02:09]} 16. Bh6 {[%emt 0:01:10]} Re8 {[%emt 0:00:08]} 17. Bg2 {[%emt 0:05:10]} Bf6 {[%emt 0:13:23]} 18. Rfe1 {[%emt 0:04:00]} b5 {[%emt 0:24:50]} 19. Rab1 {[%emt 0:11:13]} b4 {[%emt 0:14:17][%cal Ob7a6] ...Ba6! is the strong threat.} 20. Ne4 {[%emt 0:01:48]} Be5 {[%emt 0:00:11]} 21. f4 {[%emt 0:08:15]} (21. Ng5 $11) 21... Bh8 $17 {[%emt 0:06:57]} 22. Bg5 {[%emt 0:04:49] [#]} f6 {[%emt 0:00:27]} (22... Qd7 $1 $17 23. Nf2 (23. Nf6+ Bxf6 24. Bxf6 Ba6 $17) 23... a5 (23... Ba6 24. Qd2 $15)) 23. Bh4 $11 {[%emt 0:00:01]} Ba6 {[%emt 0:05:42]} 24. Qd2 {[%emt 0:00:54]} Qe7 {[%emt 0:03:09]} (24... Qd7 $11 {feels stronger.}) 25. g4 $14 {[%emt 0:05:35][%cal Bg3g4,Bg4g5,Bg5f6][%mdl 32]} Rad8 {[%emt 0:08:15]} 26. Rbd1 {[%emt 0:05:57]} Bc4 {[%emt 0:03:17]} (26... Bc8 $11 {remains equal.}) 27. g5 $16 {[%emt 0:04:36]} f5 {[%emt 0:05:01]} 28. Nf6+ {[%emt 0:00:08]} Bxf6 {[%emt 0:00:04]} 29. gxf6 {[%emt 0:00:03]} Qf7 {[%emt 0:00:04]} ({But not} 29... Qe3+ $2 30. Qxe3 Rxe3 31. f7+ Kxf7 32. Bxd8 $18) 30. b3 {[%emt 0:00:05]} (30. e4 $1 $14 fxe4 31. Bxe4 Bxa2 32. f5) 30... Ba6 $1 $11 {[%emt 0:00:11]} 31. e4 {[%emt 0:00:05]} fxe4 {[%emt 0:00:27]} 32. Bxe4 {[%emt 0:00:08]} ({Much weaker is} 32. Rxe4 Rxe4 33. Bxe4 Re8 $15) 32... Bc8 {[%emt 0:01:16] [#] Prevents f5} (32... Nb5 $11) 33. f5 {[%emt 0:11:12]} Bxf5 {[%emt 0:00:18]} 34. Bxf5 {[%emt 0:01:38]} gxf5 {[%emt 0:00:00]} 35. Re7 {[%emt 0:11:34]} Rxe7 {[%emt 0:00:11]} 36. fxe7 {[%emt 0:00:01]} Re8 {[%emt 0:01:06]} 37. Kh1 {[%emt 0:01:55] Rg1+ would kill now.} Qh5 $1 {[%emt 0:00:09]} 38. Rg1+ {[%emt 0:03:00]} Kf7 {[%emt 0:00:02][%cal Bg8f7,Bf7g7,Bg7g6,Bg6h5][%mdl 32]} 39. Qg2 {[%emt 0:05:00]} Qg4 {[%emt 0:00:05]} 40. Qxg4 {[%emt 0:00:01]} fxg4 {[%emt 0:00:07][%mdl 4096] Endgame. KRB-KRN} 41. Rf1+ {[%emt 0:00:00]} Kg7 {[%emt 0:02:39]} 42. Rf5 {[%emt 0:00:37]} Kg6 {[%emt 0:02:30]} 43. Rf8 {[%emt 0:02:10]} Kh5 {[%emt 0:00:34]} (43... Kg7 44. Bf6+ Kg6 45. Kg2 $16) 44. Bf6 {[%emt 0:00:14]} Kg6 {[%emt 0:00:16]} 45. Bh4 {[%emt 0:00:41]} a5 {[%emt 0:00:37]} 46. Kg2 {[%emt 0:00:18] Black must now prevent Kg3.} Kg7 {[%emt 0:00:29]} 47. Bf6+ {[%emt 0:01:36]} Kg6 {[%emt 0:00:02]} 48. Bh4 {[%emt 0:00:18]} Kg7 {[%emt 0:00:06]} 49. Rf5 {[%emt 0:00:36]} Kg6 {[%emt 0:01:26]} 50. Rf8 {[%emt 0:01:15] Threatens to win with Kg3.} Kg7 {[%emt 0:00:43]} 51. Rf5 {[%emt 0:00:44]} Kg6 {[%emt 0:00:07]} 52. Rf8 {[%emt 0:00:43] Strongly threatening Kg3.} Kg7 {[%emt 0:00:13]} 53. Bf6+ {[%emt 0:00:07]} Kg6 {[%emt 0:00:16]} 54. Bh4 {[%emt 0:00:37]} (54. Kg3 $5) 1/2-1/2

[Event "Baku Open 2024"]
[Site "Baku"]
[Date "2024.07.01"]
[Round "3.11"]
[White "Mammadova, Gulnar"]
[Black "Suleymanli, Aydin"]
[Result "0-1"]
[ECO "C77"]
[WhiteElo "2348"]
[BlackElo "2626"]
[Annotator "TA"]
[PlyCount "110"]
[EventDate "2024.06.29"]
[EventType "swiss"]
[EventCountry "AZE"]
[SourceTitle "playchess.com"]
[Source "ChessBase"]
[SourceQuality "1"]
[TimeControl "5400+30"]

{[%evp 62,110,-107,-110,-83,-116,0,-115,0,-113,-91,-214,-177,-274,-144,-121,-113,-222,-159,-279,-113,-126,-8,-309,-309,-618,-520,-29944,-4911,-5683,-5257,-29943,-10562,-5808,-5804,-29962,-5804,-5804,-5804,-5775,-5775,-6170,-5683,-4810,-1635,-1586,-1024,-1590,-1586,-29965,-29967]} 1. e4 {[%emt 0:00:03]} e5 {[%emt 0:00:18]} 2. Nf3 {[%emt 0:00:08]} Nc6 {[%emt 0:00:05]} 3. Bb5 {[%emt 0:00:06]} a6 {[%emt 0:00:04]} 4. Ba4 {[%emt 0:00:08]} Nf6 {[%emt 0:00:06]} 5. Nc3 {[%emt 0:00:17]} b5 {[%emt 0:01:15]} 6. Bb3 {[%emt 0:00:05]} Bc5 {[%emt 0:00:28]} 7. O-O {[%emt 0:00:43]} d6 {[%emt 0:02:26] C77: Ruy Lopez: 3...a6 4 Ba4 Nf6, unusual lines.} 8. Nd5 {[%emt 0:01:43]} h6 {[%emt 0:03:50]} 9. c3 {[%emt 0:02:24]} O-O {[%emt 0:34:31]} 10. d3 {[%emt 0:04:02]} Rb8 {[%emt 0:02:37]} 11. Be3 {[%emt 0:10:13]} Nxd5 {[%emt 0:00:30]} 12. Bxd5 {[%emt 0:00:30]} Bxe3 {[%emt 0:04:23]} 13. fxe3 {[%emt 0:04:46]} Ne7 {[%emt 0:02:27]} 14. Bb3 {[%emt 0:00:59]} Ng6 {[%emt 0:00:56]} 15. Qe1 {[%emt 0:02:26]} Qe7 {[%emt 0:03:35]} 16. Qg3 $146 {[%emt 1:09:57]} ({Predecessor:} 16. h4 Bg4 17. Qg3 Bh5 18. Rf2 a5 19. a3 b4 20. cxb4 axb4 21. a4 c6 22. Nh2 {1-0 Msellek,I (2405)-Johnson,D (2160) CAN Transnational op 2023 (5)}) 16... Be6 {[%emt 0:01:18]} 17. h4 {[%emt 0:00:00]} Bxb3 {[%emt 0:11:52]} 18. axb3 {[%emt 0:00:00]} Qe6 {[%emt 0:00:19]} 19. b4 {[%emt 0:00:00]} Rb6 {[%emt 0:02:09]} 20. h5 {[%emt 0:00:00]} Ne7 {[%emt 0:00:08]} 21. Nh4 {[%emt 0:00:00]} c5 {[%emt 0:05:55]} 22. Nf5 {[%emt 0:00:00]} Nxf5 {[%emt 0:00:31]} 23. exf5 {[%emt 0:00:00]} Qf6 {[%emt 0:00:04]} 24. e4 {[%emt 0:00:00]} Rc6 {[%emt 0:02:05]} 25. bxc5 {[%emt 0:00:00]} dxc5 {[%emt 0:00:06]} 26. Rfd1 {[%emt 0:00:00]} Rd8 {[%emt 0:00:25]} 27. Rd2 {[%emt 0:00:00]} Kh7 {[%emt 0:04:10]} 28. b3 {[%emt 0:00:00]} c4 {[%emt 0:01:31]} 29. bxc4 {[%emt 0:00:00]} bxc4 {[%emt 0:00:29]} 30. Rad1 {[%emt 0:00:00]} cxd3 {[%emt 0:00:54]} 31. Rxd3 {[%emt 0:00:00]} Rxd3 {[%emt 0:00:26]} 32. Qxd3 {[%emt 0:00:00]} Qg5 {[%emt 0:06:29]} 33. Ra1 {[%emt 0:00:00]} Qf6 {[%emt 0:10:38]} (33... Qxh5 $6 34. Rxa6 Rc8 35. f6 $11) 34. Rd1 $1 {[%emt 0:00:00]} Qg5 {[%emt 0:00:00]} 35. Ra1 $1 {[%emt 0:00:00]} Rb6 {[%emt 0:00:00]} (35... Qxh5 $6 36. Rxa6 Rc5 37. f6 $11) 36. Qe2 {[%emt 0:01:39]} (36. Rb1 $17 Rc6 (36... Rxb1+ 37. Qxb1 Qe3+ 38. Kh2 $15) 37. c4) 36... a5 {[%emt 0:00:02]} 37. c4 {[%emt 0:00:43] [#]} (37. Qa2 {might work better.}) 37... a4 {[%emt 0:00:29]} ({Better is} 37... Rb3 $1 $19 {[%cal Oa5a4][%mdl 512] ...a4! is the strong threat.} 38. c5 Rc3) 38. c5 $17 {[%emt 0:01:33]} Rb3 {[%emt 0:00:01]} 39. Qc2 {[%emt 0:01:11]} (39. f6 $17 {is the only way for White.}) 39... Qe3+ {[%emt 0:00:16]} (39... Qxh5 40. c6 Rb8 41. c7 $16 (41. Rxa4 Rd8 $11) (41. Qxa4 Rb2 $17)) 40. Kh1 {[%emt 0:00:06]} (40. Qf2 $17 {was the only chance.} Qxe4 41. f6) 40... a3 {[%emt 0:01:32]} (40... Rc3 $19 41. Qxa4 Qe2 (41... Qxc5 42. Qe8 $11) (41... Rxc5 42. Qd7 $11)) 41. Qc4 $17 {[%emt 0:02:13]} Kg8 {[%emt 0:00:47]} (41... f6 $17 {And now ...Rc3 would win.} 42. Rd1 a2) 42. c6 $2 {[%emt 0:01:28][%mdl 8192]} (42. Qa4 $1 $11) 42... Rc3 $19 {[%emt 0:00:18]} 43. Qd5 $2 {[%emt 0:00:38]} (43. Qa4) 43... Rc2 {[%emt 0:00:27]} 44. Qxe5 {[%emt 0:02:50]} (44. Qd1 $19 Qxe4 (44... Rxc6 $2 45. Qa4 $19) 45. Qf3 Qxf3 (45... Qxc6 $2 46. Rxa3 Qc4 47. f6 $19) (45... Qh4+ $2 46. Qh3 $19) 46. gxf3 Rxc6 47. Rxa3) 44... Qf2 {[%emt 0:00:15]} (44... Rxc6 $2 45. Qe8+ Kh7 46. Qxc6 $18) (44... Qg5 $142 45. Qh2 Rc1+ (45... Rxc6 $2 46. Qb8+ Kh7 47. Qb3 $19) (45... a2 $2 46. Qg1 $19) 46. Rxc1 Qxc1+ 47. Qg1 Qxg1+ (47... Qxc6 $2 48. Qa7 $19) 48. Kxg1 a2 49. g4 a1=Q+ (49... a1=B $2 50. c7 $18) 50. Kg2 Qa4 51. Kf2 Qxc6 (51... Qxe4 $2 52. Kg3 $19) 52. Kf3 Qc3+ 53. Ke2 Qd4 54. Kf3 Qd3+ 55. Kf2 Qxe4 56. Kf1 Qe3 (56... Qxg4 57. Kf2 g5 58. fxg6 fxg6 59. hxg6 h5 60. g7 h4 61. Ke3 h3 62. Kd3 h2 63. Kc3 h1=Q 64. Kd3 Qhd1+ 65. Ke3 Qgf3#) 57. Kg2 Qe2+ 58. Kh1 Qxg4 (58... f6 59. Kg1 g5 60. fxg6 Kg7 61. Kh1 Qxg4 62. Kh2 f5 63. Kh1 f4 64. Kh2 f3 65. Kh1 Qg2#) 59. Kh2 g5 (59... Qxh5+ 60. Kg3 Qxf5 61. Kg2 h5 62. Kg3 h4+ 63. Kg2 g5 64. Kh2 Qf3 65. Kg1 h3 66. Kh2 Qg2#) 60. hxg6 h5 (60... Qxf5 61. gxf7+ Kxf7 62. Kg2 Qf4 63. Kg1 Qf3 64. Kh2 h5 65. Kg1 h4 66. Kh2 h3 67. Kg1 Qg2#) 61. Kh1 h4 (61... fxg6 62. Kh2 gxf5 63. Kh1 h4 64. Kh2 h3 65. Kh1 Qg2#) 62. Kh2 h3 (62... Qxf5 63. gxf7+ Kxf7 64. Kg2 Qf4 65. Kg1 h3 66. Kh1 Qf3+ 67. Kh2 Qg2#) 63. gxf7+ Kxf7 64. Kh1 Qg2#) 45. Qh2 $19 {[%emt 0:01:29]} a2 {[%emt 0:00:27]} 46. c7 {[%emt 0:00:11]} Qd4 {[%emt 0:00:35]} 47. Qg1 {[%emt 0:00:37]} Qxe4 {[%emt 0:00:30]} 48. Qf1 {[%emt 0:00:44]} Qh4+ {[%emt 0:00:45]} (48... Rxc7 49. Rxa2 Rc3 50. Re2 Qh4+ 51. Kg1 $17) (48... Qc6 $142 49. f6 Qxc7 (49... gxf6 $2 50. c8=Q+ Qxc8 51. Qf4 $19) 50. fxg7 Qe5 (50... Kxg7 $2 51. Rd1 $19) 51. Re1 Qg5 (51... Qxg7 $2 52. Re8+ $18) (51... Qxh5+ $2 52. Kg1 $19) 52. Kg1 Kxg7 (52... Qxg7 $2 53. Re8+ $18) 53. Kh2 Qxh5+ 54. Kg1 Qg4 55. Kh2 Rb2 56. Rc1 Qh4+ 57. Kg1 Qe4 58. Re1 Qxe1 59. Qxe1 Rb1 60. Kf2 Rxe1 (60... a1=B $2 61. Qxb1 Bf6 62. Kf3 $18) 61. Kxe1 a1=Q+ (61... a1=B $2 62. Kf2 $19) 62. Kd2 Qb2+ 63. Ke3 Qxg2 64. Kd4 h5 65. Ke3 h4 66. Kd4 h3 67. Kd3 h2 68. Ke3 Qg4 (68... h1=R 69. Kd4 Qc2 70. Ke3 Kf6 71. Kd4 Re1 72. Kd5 Rd1#) 69. Kd3 h1=Q (69... h1=R 70. Ke3 Rh3+ 71. Kf2 Rf3+ 72. Ke1 Qg2 73. Kd1 Rf1#) 70. Kd2 Qd4+ 71. Ke2 Qhd1#) 49. Kg1 $19 {[%emt 0:00:04]} Qd4+ {[%emt 0:00:02]} (49... Rxc7 50. Rxa2 Qxh5 51. Rf2 $17) 50. Kh1 {[%emt 0:00:04]} Qc3 {[%emt 0:00:35]} (50... Rxc7 51. Rxa2 Qg4 52. Kg1 $17) 51. Re1 {[%emt 0:00:59]} Qxc7 {[%emt 0:00:48]} 52. f6 {[%emt 0:00:06]} Qd8 {[%emt 0:00:49]} (52... gxf6 $142 53. Rd1 Rc5) 53. Qf5 $19 {[%emt 0:01:09]} Re2 {[%emt 0:00:24]} ({Weaker is} 53... Qxf6 54. Re8#) 54. Rc1 {[%emt 0:00:07]} Rd2 {[%emt 0:00:39]} (54... gxf6 $2 {loses.} 55. Qg4+ Kh8 56. Qxe2 $18) 55. Qg4 {[%emt 0:00:57]} Qxf6 {[%emt 0:00:16]} 0-1